bitfinex/quotes_SOLUSD_20251006
["timestamp","ask_amount","ask_price","bid_price","bid_amount"]
[1759711927838,48.35940635,228.65,228.64,1e-08]
[1759711928148,48.35940635,228.65,228.64,0.67000001]
[1759711928353,4.37349661,228.65,228.64,0.67000001]
[1759711928566,35.31349661,228.65,228.64,0.67000001]
[1759711931633,30.94,228.65,228.64,0.67000001]
[1759711931833,30.94,228.66,228.64,0.67000001]
[1759711932646,20.8,228.71,228.64,0.67000001]
[1759711932848,30.94,228.7,228.64,0.67000001]
[1759711933856,35.31254835,228.7,228.64,0.67000001]
[1759711935160,46.24389946,228.7,228.64,0.67000001]
[1759711935362,48.41333399,228.7,228.64,0.67000001]
[1759711935664,35.31254835,228.7,228.64,0.67000001]
[1759711936060,37.48198288,228.7,228.64,0.67000001]
[1759711936357,2.16943453,228.67,228.64,0.67000001]
[1759711936547,33.10943453,228.67,228.65,0.67]
[1759711936747,2.16943453,228.66,228.64,1e-08]
[1759711936977,33.10943453,228.65,228.64,1e-08]
[1759711937138,30.94,228.65,228.64,0.67000001]
[1759711937740,36.70281311,228.65,228.64,1e-08]
[1759711940262,35.31349661,228.65,228.64,0.66000001]
[1759711941337,36.70281311,228.65,228.64,1e-08]
[1759711944484,35.31349661,228.65,228.64,0.66000001]
[1759711945467,30.94,228.65,228.64,0.66000001]
[1759711946255,35.31331476,228.66,228.64,0.66000001]
[1759711946982,35.31331476,228.66,228.65,0.66]
[1759711947354,4.37331476,228.66,228.65,0.66]
[1759711947557,4.3730718,228.68,228.65,0.66]
[1759711947759,35.3130718,228.68,228.65,0.66]
[1759711947959,22.1893165,228.71,228.65,0.66]
[1759711947960,4.37254044,228.7,228.65,0.66]
[1759711948163,30.94,228.69,228.65,0.66]
[1759711949069,35.31254044,228.7,228.65,0.66]
[1759711949984,1.3893165,228.72,228.65,0.66]
[1759711950175,1.3893165,228.75,228.65,5.033378]
[1759711950377,30.94,228.73,228.66,0.66]
[1759711950865,1.3893165,228.68,228.64,1e-08]
[1759711951064,0.72,228.72,228.64,1e-08]
[1759711951065,5.76281311,228.65,228.64,1e-08]
[1759711951263,36.70281311,228.65,228.64,1e-08]
[1759711951464,37.42281311,228.65,228.64,1e-08]
[1759711952975,48.29928832,228.65,228.64,1e-08]
[1759711954301,48.29928832,228.65,228.57,0.2]
[1759711954302,20.8,228.62,228.57,0.2]
[1759711954473,81.10051289,228.65,228.57,0.2]
[1759711954474,22.1893165,228.58,228.57,0.2]
[1759711954669,53.1293165,228.58,228.57,0.2]
[1759711954989,2.28338035,228.68,228.57,0.2]
[1759711954990,4.37407051,228.62,228.57,0.2]
[1759711955184,32.3293165,228.61,228.57,0.86]
[1759711955763,1.3893165,228.59,228.57,0.86]
[1759711955986,30.94,228.58,228.57,0.86]
[1759711956185,32.3293165,228.58,228.57,0.2]
[1759711956789,30.94,228.58,228.57,0.2]
[1759711957171,35.31483594,228.58,228.57,0.2]
[1759711957583,36.70415244,228.58,228.57,0.2]
[1759711958577,37.39415244,228.58,228.57,0.2]
[1759711959080,48.27062765,228.58,228.57,0.2]
[1759711959284,46.88131115,228.58,228.57,0.2]
[1759711959482,48.27062765,228.58,228.57,0.2]
[1759711959674,36.70415244,228.58,228.57,0.2]
[1759711961791,48.27062765,228.58,228.57,0.2]
[1759711963004,31.67647521,228.54,228.52,0.2]
[1759711963302,32.3293165,228.53,228.52,0.2]
[1759711963891,30.94,228.53,228.52,0.86]
[1759711964278,32.3293165,228.53,228.52,0.2]
[1759711964896,36.70510961,228.53,228.52,0.2]
[1759711965912,30.94,228.53,228.52,0.2]
[1759711966197,35.31579311,228.53,228.52,0.2]
[1759711966373,36.70510961,228.53,228.52,0.2]
[1759711967001,48.27158482,228.53,228.52,0.2]
[1759711967182,10.87647521,228.52,228.51,0.2]
[1759711967385,12.95579171,228.52,228.51,0.2]
[1759711968287,20.8,228.49,228.43,0.66]
[1759711968607,1.3893165,228.44,228.43,0.66]
[1759711968789,32.3293165,228.44,228.43,0.66]
[1759711968973,30.94,228.44,228.43,0.66]
[1759711970203,36.70683357,228.44,228.41,0.2]
[1759711970511,1.3893165,228.43,228.41,0.2]
[1759711970698,30.94,228.42,228.41,0.86]
[1759711970896,35.31790035,228.42,228.41,0.86]
[1759711971103,36.70721685,228.42,228.41,0.2]
[1759711971801,37.42721685,228.42,228.41,0.2]
[1759711971992,36.70721685,228.42,228.41,0.2]
[1759711972193,37.42721685,228.42,228.41,0.2]
[1759711972427,36.70721685,228.42,228.41,0.2]
[1759711973307,20.8,228.43,228.41,0.86]
[1759711973515,30.96,228.42,228.41,0.2]
[1759711974115,1.3893165,228.48,228.41,0.86]
[1759711974320,30.96,228.47,228.42,0.66]
[1759711974500,30.96,228.47,228.43,0.66]
[1759711974818,30.96,228.47,228.41,0.2]
[1759711974819,32.3493165,228.47,228.44,0.66]
[1759711975898,32.3493165,228.47,228.41,0.2]
[1759711976104,5.76645035,228.46,228.42,0.66]
[1759711976305,30.96,228.45,228.42,0.66]
[1759711976530,32.3493165,228.45,228.41,0.2]
[1759711976732,1.3893165,228.43,228.41,0.2]
[1759711977039,30.96,228.42,228.41,0.2]
[1759711977698,5.76645035,228.46,228.41,0.86]
[1759711977915,30.96,228.45,228.42,0.66]
[1759711978231,30.96,228.45,228.41,0.2]
[1759711978522,15.2524598,228.52,228.43,0.66]
[1759711978818,20.8,228.48,228.43,0.66]
[1759711978998,30.96,228.47,228.43,0.66]
[1759711979199,30.96,228.47,228.44,0.66]
[1759711979400,30.96,228.47,228.45,0.66]
[1759711979630,30.96,228.47,228.46,0.66]
[1759711980119,30.96,228.47,228.41,0.2]
[1759711980322,35.33700581,228.47,228.44,0.66]
[1759711980527,1.3893165,228.45,228.41,0.2]
[1759711980719,35.33700581,228.47,228.41,0.2]
[1759711980720,1.3893165,228.42,228.41,0.2]
[1759711980934,32.3493165,228.42,228.41,0.2]
[1759711981224,15.31936148,228.47,228.41,0.86]
[1759711981225,1.3893165,228.45,228.41,0.86]
[1759711981521,30.96,228.44,228.42,0.66]
[1759711981727,31.67647521,228.48,228.42,0.66]
[1759711981728,30.96,228.43,228.42,0.66]
[1759711981930,30.96,228.43,228.41,0.2]
[1759711982112,30.96,228.44,228.41,0.2]
[1759711982515,30.96,228.44,228.42,0.66]
[1759711982823,4.37706301,228.47,228.43,0.66]
[1759711983021,30.96,228.46,228.43,0.66]
[1759711983519,35.33728076,228.46,228.43,0.66]
[1759711983818,0.72,228.45,228.41,0.2]
[1759711984017,0.72,228.44,228.41,0.2]
[1759711984203,30.96,228.43,228.41,0.2]
[1759711984805,30.96,228.43,228.41,3.54582483]
[1759711985520,4.37790035,228.42,228.41,3.54582483]
[1759711986230,30.96,228.43,228.41,3.54582483]
[1759711987007,36.05772657,228.43,228.41,0.2]
[1759711987525,35.33772657,228.43,228.41,0.2]
[1759711987730,0.72,228.42,228.41,0.2]
[1759711987930,14.94230004,228.42,228.41,0.2]
[1759711988305,11.59647521,228.42,228.41,0.2]
[1759711989329,0.72,228.42,228.41,0.2]
[1759711989507,15.97437556,228.42,228.41,0.2]
[1759711989922,5.09790035,228.42,228.41,0.2]
[1759711990131,4.37790035,228.42,228.41,0.2]
[1759711990342,13.2287335,228.46,228.41,3.54582483]
[1759711990343,2.28589887,228.46,228.41,3.54582483]
[1759711990524,30.96,228.45,228.44,3.34582483]
[1759711990714,30.96,228.45,228.41,0.2]
[1759711990715,20.8,228.43,228.42,3.34582483]
[1759711991328,20.8,228.43,228.41,3.54582483]
[1759711991526,30.96,228.42,228.41,0.2]
[1759711991823,35.33790035,228.42,228.41,0.2]
[1759711992025,36.05790035,228.42,228.41,0.2]
[1759711992425,30.96,228.42,228.41,0.2]
[1759711992807,31.68,228.42,228.41,0.2]
[1759711993237,30.96,228.42,228.41,0.2]
[1759711993534,51.76,228.42,228.41,0.2]
[1759711993712,52.48,228.42,228.41,0.2]
[1759711993916,20.8,228.42,228.41,0.2]
[1759711994122,51.76,228.42,228.41,0.2]
[1759711994822,0.72,228.44,228.41,0.2]
[1759711995034,30.96,228.43,228.41,0.2]
[1759711995237,30.96,228.42,228.41,0.2]
[1759711995926,35.02582483,228.42,228.41,0.2]
[1759711996439,30.96,228.42,228.41,0.2]
[1759711996816,4.37749227,228.45,228.41,0.2]
[1759711997017,20.8,228.42,228.41,0.2]
[1759711997213,30.96,228.42,228.41,5.32661743]
[1759711997513,0.7,228.48,228.41,5.32661743]
[1759711997713,10.87647521,228.5,228.41,0.2]
[1759711997714,5.12661743,228.42,228.41,0.2]
[1759711997942,30.98,228.42,228.41,0.2]
[1759711998441,36.10661743,228.42,228.41,0.2]
[1759711998747,31.0,228.42,228.41,0.2]
[1759711999041,20.8,228.42,228.41,0.2]
[1759711999210,31.0,228.42,228.41,0.2]
[1759711999849,3.65308655,228.51,228.41,0.87]
[1759712000022,9.50264034,228.52,228.44,5.12661743]
[1759712000221,20.8,228.48,228.44,5.79661743]
[1759712000441,31.0,228.47,228.45,5.12661743]
[1759712000738,31.0,228.46,228.45,5.12661743]
[1759712001037,31.0,228.46,228.45,0.67]
[1759712001219,31.0,228.46,228.45,5.79661743]
[1759712001830,41.20385478,228.46,228.41,0.2]
[1759712002217,41.20385478,228.46,228.41,0.87]
[1759712002218,31.0,228.46,228.41,0.87]
[1759712002821,36.12661743,228.46,228.41,0.87]
[1759712003019,31.0,228.46,228.41,0.87]
[1759712004058,36.12661743,228.46,228.41,0.87]
[1759712004249,5.12661743,228.45,228.41,0.2]
[1759712004451,5.82661743,228.45,228.41,0.2]
[1759712004952,36.12661743,228.46,228.41,0.2]
[1759712005123,20.8,228.45,228.41,0.87]
[1759712005329,20.8,228.45,228.42,0.67]
[1759712005539,20.8,228.45,228.44,5.12661743]
[1759712005754,51.78,228.45,228.44,0.67]
[1759712006046,51.78,228.45,228.42,5.12661743]
[1759712006241,51.78,228.45,228.44,0.67]
[1759712006638,51.78,228.45,228.41,0.2]
[1759712006846,51.78,228.45,228.42,0.67]
[1759712007036,51.78,228.45,228.43,0.67]
[1759712009040,25.92661743,228.53,228.44,5.79661743]
[1759712009233,25.92661743,228.53,228.46,5.12661743]
[1759712009451,20.8,228.49,228.47,5.12661743]
[1759712009633,30.98,228.48,228.46,5.12661743]
[1759712009834,30.98,228.48,228.47,0.67]
[1759712010139,30.98,228.48,228.47,5.79661743]
[1759712010446,30.98,228.48,228.47,0.67]
[1759712010652,3.65308655,228.57,228.47,5.79661743]
[1759712010653,5.12661743,228.55,228.47,5.79661743]
[1759712010850,36.80661743,228.54,228.47,0.67]
[1759712011059,20.8,228.51,228.47,0.67]
[1759712011239,5.82661743,228.54,228.41,0.2]
[1759712011240,20.8,228.45,228.41,0.2]
[1759712011426,0.7,228.54,228.41,0.2]
[1759712011427,20.8,228.42,228.41,0.2]
[1759712011631,51.82,228.42,228.41,0.87]
[1759712011830,51.82,228.42,228.41,5.99661743]
[1759712012139,51.82,228.42,228.41,0.2]
[1759712013952,51.82,228.42,228.41,0.9]
[1759712014251,51.82,228.42,228.41,0.2]
[1759712018243,51.82,228.42,228.41,6.02661743]
[1759712018443,21.99,228.52,228.41,6.02661743]
[1759712018647,36.10661743,228.51,228.44,5.12661743]
[1759712018850,20.8,228.48,228.44,5.12661743]
[1759712019173,30.98,228.47,228.43,5.82661743]
[1759712019338,20.8,228.45,228.44,0.7]
[1759712019537,51.78,228.45,228.44,0.7]
[1759712020346,51.78,228.45,228.44,5.82661743]
[1759712020657,51.78,228.45,228.44,0.7]
[1759712020862,51.78,228.45,228.41,0.9]
[1759712021052,51.78,228.45,228.42,0.7]
[1759712021237,51.78,228.45,228.42,5.82661743]
[1759712022058,51.78,228.45,228.43,0.7]
[1759712022259,51.78,228.45,228.43,5.82661743]
[1759712022468,51.78,228.45,228.44,5.12661743]
[1759712022844,51.78,228.45,228.43,0.7]
[1759712023051,51.78,228.45,228.44,0.7]
[1759712023559,30.98,228.45,228.44,5.82661743]
[1759712024265,30.98,228.45,228.43,5.12661743]
[1759712024568,31.67,228.45,228.41,0.2]
[1759712024764,52.47,228.45,228.41,0.2]
[1759712026749,51.78,228.45,228.41,0.2]
[1759712026948,52.47,228.45,228.41,0.2]
[1759712028460,51.78,228.45,228.42,0.72]
[1759712028702,20.8,228.43,228.41,0.2]
[1759712028850,30.96,228.42,228.41,0.2]
[1759712029255,30.96,228.42,228.41,0.92]
[1759712029652,30.96,228.42,228.41,0.2]
[1759712030741,30.96,228.42,228.41,0.92]
[1759712033164,30.96,228.42,228.41,0.2]
[1759712034091,30.96,228.42,228.41,0.92]
[1759712034761,30.96,228.42,228.41,0.2]
[1759712038890,31.68,228.42,228.41,0.2]
[1759712039763,30.96,228.42,228.41,0.92]
[1759712039971,30.96,228.42,228.41,0.2]
[1759712040175,30.96,228.44,228.41,0.92]
[1759712040376,30.96,228.44,228.42,0.72]
[1759712040761,0.72,228.5,228.41,0.2]
[1759712040762,0.72,228.5,228.43,0.72]
[1759712040960,30.96,228.49,228.43,0.72]
[1759712041197,20.8,228.45,228.43,0.72]
[1759712041379,20.8,228.45,228.44,0.72]
[1759712041766,20.8,228.45,228.41,0.2]
[1759712041966,20.8,228.45,228.42,0.72]
[1759712042184,20.8,228.45,228.43,0.72]
[1759712042389,0.5,228.52,228.44,0.72]
[1759712042575,0.72,228.55,228.44,0.72]
[1759712042576,30.96,228.51,228.44,0.72]
[1759712042788,30.96,228.52,228.45,10.87647521]
[1759712042976,30.96,228.52,228.41,15.52330614]
[1759712042977,30.96,228.52,228.46,0.72]
[1759712044082,31.68,228.52,228.41,4.57804757]
[1759712044281,2.17442994,228.47,228.41,0.2]
[1759712044483,0.72,228.51,228.41,0.2]
[1759712044484,20.8,228.43,228.41,0.2]
[1759712044685,53.93442994,228.43,228.41,0.2]
[1759712044881,0.72,228.42,228.41,0.2]
[1759712046096,18.1488055,228.42,228.41,0.2]
[1759712047069,21.10417977,228.42,228.41,0.2]
[1759712047900,21.60417977,228.42,228.41,0.2]
[1759712048100,17.22627942,228.42,228.41,0.2]
[1759712049194,16.72627942,228.42,228.41,0.2]
[1759712051610,29.87627942,228.42,228.41,0.2]
[1759712052015,33.4278226,228.42,228.41,0.2]
[1759712052316,29.87627942,228.42,228.41,0.2]
[1759712052482,33.47313903,228.42,228.41,0.2]
[1759712053215,50.05400661,228.42,228.41,0.2]
[1759712053419,15.25456723,228.41,228.4,1e-08]
[1759712053585,88.21320175,228.41,228.4,1e-08]
[1759712053785,20.8,228.39,228.38,1e-08]
[1759712053988,80.95627942,228.39,228.38,1e-08]
[1759712054318,72.20554566,228.39,228.38,1e-08]
[1759712054482,68.52627942,228.39,228.38,1e-08]
[1759712054886,36.05552583,228.36,228.35,0.2]
[1759712055102,72.18533004,228.36,228.35,0.2]
[1759712055308,92.90533004,228.36,228.35,1e-08]
[1759712055615,10.87647521,228.35,228.34,1e-08]
[1759712055791,16.00627942,228.35,228.34,1e-08]
[1759712055993,20.8,228.26,228.22,0.72]
[1759712056210,20.0,228.34,228.18,0.1]
[1759712056211,20.67994865,228.2,228.18,0.1]
[1759712056413,31.0,228.19,228.18,0.1]
[1759712057416,31.0,228.19,228.18,0.82]
[1759712059317,20.8,228.26,228.18,0.82]
[1759712059518,20.8,228.22,228.18,0.82]
[1759712059813,31.02,228.21,228.18,0.82]
[1759712060216,31.02,228.21,228.19,0.66]
[1759712060410,31.02,228.21,228.2,0.66]
[1759712061911,31.02,228.21,228.18,0.1]
[1759712061912,20.8,228.19,228.18,0.1]
[1759712062225,51.8,228.19,228.18,0.1]
[1759712063202,51.8,228.19,228.18,0.76]
[1759712064010,51.8,228.19,228.18,0.1]
[1759712064207,31.72,228.19,228.18,0.1]
[1759712064733,31.0,228.19,228.18,0.1]
[1759712064929,3.35238169,228.16,228.13,0.36869364]
[1759712065135,31.06,228.15,228.13,0.36869364]
[1759712065333,30.59989726,228.14,228.1,0.66]
[1759712065534,0.7,228.18,228.02,10.87647521]
[1759712065535,0.24000625,228.12,228.11,0.66]
[1759712065735,31.08,228.12,228.11,0.66]
[1759712066317,31.08,228.12,228.08,0.66]
[1759712066513,31.08,228.12,228.09,0.66]
[1759712066738,0.81997472,228.11,228.07,20.8]
[1759712067044,31.1,228.1,228.03,0.66]
[1759712067220,3.35238169,228.05,228.01,0.32535065]
[1759712067408,3.35238169,228.03,228.01,0.32535065]
[1759712067607,34.49238169,228.02,228.01,0.32535065]
[1759712067808,31.84,228.02,228.01,0.32535065]
[1759712068008,35.19238169,228.02,228.01,0.32535065]
[1759712069036,31.84,228.02,228.01,0.32535065]
[1759712069344,42.71647521,228.02,228.01,0.20537593]
[1759712069539,0.7,228.05,228.01,0.20537593]
[1759712069844,3.35238169,228.02,228.01,0.20537593]
[1759712070132,34.59238169,228.02,228.01,0.20537593]
[1759712070339,35.29238169,228.02,228.01,0.20537593]
[1759712070637,46.1688569,228.02,228.01,0.20537593]
[1759712070839,20.0,228.09,228.01,0.20537593]
[1759712070840,0.7,228.06,228.01,0.20537593]
[1759712071040,3.35238169,228.02,228.01,0.20537593]
[1759712071366,31.28,228.02,228.01,0.20537593]
[1759712072032,34.63238169,228.02,228.01,0.20537593]
[1759712072516,31.28,228.02,228.01,0.20537593]
[1759712072720,34.63238169,228.02,228.01,0.20537593]
[1759712072922,31.28,228.02,228.01,0.20537593]
[1759712073442,31.28,228.02,228.01,0.91537593]
[1759712073938,31.28,228.02,228.01,0.20537593]
[1759712076337,31.28,228.02,228.01,0.91537593]
[1759712076947,0.7,228.11,228.01,0.91537593]
[1759712077242,31.32,228.1,228.08,3.35846219]
[1759712077433,31.32,228.09,228.08,3.35846219]
[1759712077820,31.32,228.09,228.03,20.8]
[1759712078022,31.32,228.09,228.02,3.35846219]
[1759712078325,0.7,228.08,228.01,4.27383812]
[1759712078842,31.32,228.09,228.01,4.27383812]
[1759712078843,31.32,228.09,228.02,3.35846219]
[1759712079439,31.32,228.09,228.04,3.35846219]
[1759712079648,31.32,228.09,228.04,4.06846219]
[1759712080750,31.32,228.09,228.08,3.35846219]
[1759712081058,31.32,228.09,228.08,4.06846219]
[1759712081257,31.32,228.09,228.08,3.35846219]
[1759712082229,31.32,228.09,228.07,3.35846219]
[1759712082443,31.92,228.09,228.05,3.35846219]
[1759712083332,31.92,228.09,228.02,0.71]
[1759712083650,32.62,228.09,228.02,3.35846219]
[1759712084942,32.62,228.09,228.01,0.20537593]
[1759712085144,0.7,228.08,228.01,0.20537593]
[1759712085650,3.35846219,228.07,228.01,0.20537593]
[1759712085847,4.05846219,228.07,228.01,0.20537593]
[1759712086032,0.7,228.07,228.01,0.20537593]
[1759712086235,31.92,228.09,228.02,3.35846219]
[1759712087430,31.92,228.09,228.04,3.35846219]
[1759712087626,31.92,228.09,228.06,3.35846219]
[1759712087826,31.92,228.09,228.08,3.35846219]
[1759712088248,31.92,228.09,228.05,0.72]
[1759712088249,31.32,228.09,228.05,0.72]
[1759712088450,31.32,228.09,228.07,3.35846219]
[1759712089234,31.32,228.09,228.07,0.72]
[1759712089429,31.32,228.09,228.08,3.35846219]
[1759712089845,31.32,228.09,228.07,0.72]
[1759712090052,31.32,228.09,228.08,3.35846219]
[1759712090354,31.32,228.09,228.08,4.07846219]
[1759712090551,31.32,228.09,228.08,3.35846219]
[1759712091651,32.59,228.09,228.02,0.72]
[1759712091851,31.92,228.09,228.06,3.35846219]
[1759712092152,31.92,228.09,228.08,3.35846219]
[1759712092356,31.32,228.09,228.08,4.07846219]
[1759712092726,0.67,228.16,228.08,4.07846219]
[1759712093028,31.3,228.16,228.15,3.35846219]
[1759712093532,0.67,228.23,228.15,4.07846219]
[1759712093748,31.32,228.22,228.17,3.35846219]
[1759712093947,31.99,228.22,228.17,3.35846219]
[1759712094254,0.67,228.21,228.11,0.72]
[1759712094434,0.67,228.21,228.14,3.35846219]
[1759712094631,0.67,228.21,228.11,0.72]
[1759712094832,0.67,228.21,228.14,3.35846219]
[1759712095045,31.32,228.22,228.16,3.35846219]
[1759712095245,31.32,228.22,228.18,3.35846219]
[1759712095564,31.32,228.22,228.2,3.35846219]
[1759712096356,31.32,228.22,228.21,0.72]
[1759712097245,31.32,228.22,228.2,3.35846219]
[1759712097446,31.32,228.22,228.21,0.72]
[1759712098041,31.32,228.22,228.15,10.87647521]
[1759712098240,31.32,228.22,228.21,3.35846219]
[1759712098455,31.32,228.22,228.21,4.07846219]
[1759712099247,31.32,228.22,228.21,0.72]
[1759712099566,31.32,228.22,228.21,3.35846219]
[1759712100139,31.3,228.26,228.21,3.35846219]
[1759712100332,0.67,228.25,228.15,20.8]
[1759712100531,0.67,228.24,228.15,0.72]
[1759712100731,0.67,228.24,228.2,3.35846219]
[1759712100942,0.67,228.23,228.15,0.72]
[1759712101156,31.97,228.26,228.2,3.35846219]
[1759712101666,31.3,228.26,228.24,3.35846219]
[1759712103745,31.3,228.26,228.2,0.72]
[1759712103953,31.3,228.26,228.24,3.35846219]
[1759712104852,31.3,228.26,228.15,20.8]
[1759712105063,1.27,228.25,228.13,0.72]
[1759712105440,20.8,228.23,228.13,0.72]
[1759712105640,4.02846219,228.22,228.14,3.35846219]
[1759712105840,31.95,228.21,228.14,3.35846219]
[1759712106077,0.67,228.2,228.14,3.35846219]
[1759712106563,4.38231298,228.19,228.14,3.35846219]
[1759712106750,0.67,228.18,228.14,3.35846219]
[1759712107555,0.67,228.17,228.12,3.35846219]
[1759712107867,31.28,228.16,228.14,3.35846219]
[1759712109269,31.28,228.16,228.01,0.20537593]
[1759712109270,0.67,228.15,228.09,3.35846219]
[1759712109566,0.67,228.15,228.05,0.72]
[1759712109567,0.67,228.14,228.07,3.35846219]
[1759712109740,20.8,228.13,228.01,0.20537593]
[1759712109946,3.35846219,228.11,228.01,0.20537593]
[1759712110196,31.95,228.1,228.04,3.35846219]
[1759712110672,4.38423429,228.09,228.01,0.20537593]
[1759712110861,5.05423429,228.09,228.01,0.20537593]
[1759712111070,8.41269648,228.09,228.01,0.20537593]
[1759712111251,20.8,228.06,228.01,0.20537593]
[1759712111447,31.3,228.05,228.01,0.20537593]
[1759712111686,31.97,228.05,228.01,0.20537593]
[1759712112062,4.02846219,228.1,228.04,3.35846219]
[1759712112262,31.3,228.09,228.08,3.35846219]
[1759712112462,31.3,228.09,228.08,4.07846219]
[1759712113185,0.67,228.17,228.08,4.07846219]
[1759712113482,31.97,228.16,228.08,0.72]
[1759712113688,31.97,228.16,228.11,3.35846219]
[1759712113689,31.3,228.16,228.11,3.35846219]
[1759712113856,31.3,228.16,228.15,3.35846219]
[1759712114060,31.3,228.16,228.15,4.07846219]
[1759712114680,31.3,228.16,228.15,3.35846219]
[1759712115081,31.3,228.16,228.12,0.72]
[1759712115392,31.3,228.16,228.13,3.35846219]
[1759712116456,31.3,228.16,228.15,3.35846219]
[1759712117069,31.3,228.16,228.15,4.07846219]
[1759712117460,31.3,228.16,228.15,3.35846219]
[1759712117662,20.8,228.14,228.13,0.72]
[1759712117876,31.3,228.16,228.14,0.68]
[1759712118265,31.3,228.16,228.15,3.35846219]
[1759712118992,31.3,228.16,228.15,4.03846219]
[1759712119196,20.8,228.2,228.15,5.81704207]
[1759712119370,7.45009253,228.22,228.16,0.68]
[1759712119371,31.28,228.22,228.16,0.68]
[1759712119571,31.28,228.22,228.21,5.13704207]
[1759712120267,2.28790031,228.3,228.21,5.81704207]
[1759712120467,11.66215468,228.31,228.26,5.13704207]
[1759712120468,31.3,228.29,228.26,5.13704207]
[1759712120988,31.3,228.29,228.24,0.68]
[1759712121384,31.3,228.29,228.26,5.13704207]
[1759712121580,31.3,228.29,228.24,0.68]
[1759712121790,31.3,228.29,228.26,5.13704207]
[1759712121979,31.3,228.29,228.16,0.68]
[1759712121980,20.8,228.25,228.16,0.68]
[1759712122193,31.28,228.24,228.19,5.13704207]
[1759712122393,0.7,228.23,228.14,0.68]
[1759712122617,31.28,228.24,228.17,5.13704207]
[1759712123133,31.28,228.24,228.19,5.13704207]
[1759712123294,0.6,228.27,228.21,5.13704207]
[1759712123495,32.02,228.26,228.16,21.48]
[1759712123694,32.02,228.26,228.2,5.13704207]
[1759712124795,31.32,228.26,228.2,5.13704207]
[1759712125716,0.7,228.25,228.16,20.8]
[1759712125902,0.7,228.25,228.18,5.13704207]
[1759712126212,36.45704207,228.26,228.21,5.13704207]
[1759712126213,31.32,228.26,228.21,5.13704207]
[1759712127723,32.02,228.26,228.19,0.68]
[1759712127935,32.02,228.26,228.15,0.68]
[1759712127936,36.40102705,228.26,228.15,0.68]
[1759712128096,20.8,228.23,228.16,5.13704207]
[1759712128294,31.3,228.22,228.16,5.13704207]
[1759712128500,31.3,228.22,228.13,0.68]
[1759712128710,31.3,228.22,228.15,5.13704207]
[1759712129914,31.3,228.22,228.14,0.68]
[1759712130095,31.3,228.22,228.16,5.13704207]
[1759712130293,0.7,228.21,228.15,5.13704207]
[1759712131922,31.3,228.22,228.13,0.68]
[1759712132108,31.3,228.22,228.15,5.13704207]
[1759712133518,35.68173904,228.22,228.15,5.13704207]
[1759712133716,31.3,228.22,228.15,5.13704207]
[1759712134135,0.69,228.21,228.14,5.13704207]
[1759712134637,31.3,228.22,228.14,5.13704207]
[1759712134803,31.3,228.22,228.16,5.13704207]
[1759712134997,11.47647521,228.27,228.18,5.13704207]
[1759712135224,0.6,228.27,228.21,5.13704207]
[1759712135432,31.26,228.26,228.21,5.13704207]
[1759712135802,31.26,228.26,228.21,5.84704207]